{"text_format":"1","workbook":"xlsx","n_sheets":4,"sheets":["Teilprojekt 1","Teilprojekt 2","Teilprojekt 3","Teilprojekt 4"],"not_rendered":{"charts":0,"images":0,"macros":1,"external_links":0,"defined_names":83,"comments":0,"pivot_tables":0},"unopened":[],"bounds":{"document_bytes":16777216,"sheet_cells":100000,"rows_first":2000,"rows_last":500,"rows_between":2000,"halvings":0,"cell_chars":16384,"cell_head_chars":4096},"cells_cut":0,"cells_raw":0,"read":"whole","date_system":"1900"}

{"sheet":"Teilprojekt 1","index":0,"n_rows":55,"n_cols":29,"rows_kept":55,"cut":false,"hidden":false,"merged":[[19,25,19,28],[0,2,0,18],[1,12,1,13],[2,12,2,13],[4,2,4,4],[4,5,4,6],[4,8,4,10],[4,11,4,18],[6,2,6,4],[6,5,6,6],[19,14,19,18],[8,2,8,4],[8,5,8,6],[10,2,10,4],[10,12,10,13],[12,2,12,4],[12,12,12,13],[19,20,19,24],[49,3,49,5],[49,7,49,11],[50,3,50,5],[50,7,50,11],[13,2,13,4],[13,12,13,13],[14,12,14,13],[15,2,15,5],[19,2,19,13]]}
[":","Investkosten","Belegaufstellung für Investitionskosten"]
[":","Sachkosten","Zahlungsantrag - Belegaufstellung für Sachkosten"]
[":","Invest- & Sachkosten","Zahlungsantrag - Belegaufstellung für Investitions- und Sachkosten"]
["UBVbv"]
["UBVbv",null,"Betriebs-/Klientennummer: ",null,null,null,null,null,"(Teil)-Projektbezeichnung"]
["UBVbv"]
["UBVbv",null,"Förderungswerber: ",null,null,null,null,null,"Achtung: für jedes Teilprojekt wie z.B.: Stall, Melktechnik, Silo, Güllegrube ist ein eigenes Tabellenblatt zu verwenden"]
["UBVbv"]
["UBVbv",null,"Antragsnummer: ",null,null,null,null,null,"Eigenleistung: eingesetztes Bauholz (als Nachweis sind Holzschnittrechnung bzw. Holzauszug beizulegen!)"]
["UBVbv"]
["UBVbv",null,"Vorsteuerabzugsberechtigung: ",null,null,"Ja","Ja",null,null,null,"Menge","Kostensatz","Nettowert"]
["UBVbv"]
["UBVbv",null,"Genehmigter Zeitraum für  ",null,null,"Beginn","Ende",null,"Rundholz (fm):",null,null,95,{"$f":"L13*K13","v":0}]
["UBVbv",null,"Kostenanerkennung laut Bewilligung:",null,null,null,null,null,"Schnittholz (rm):",null,null,250,{"$f":"L14*K14","v":0}]
["UBVbv",null,null,null,null,null,null,null,null,null,null,"Summe:",{"$f":"SUM(M13:N14)","v":0}]
["UBVbv",null,"Buttons zur internen Verwendung der Bewilligenden Stelle"]
["UBVbv"]
["UBVbv"]
["-","-","UBVbv","UBVbv","UBVbv","UBVbv","UBV","UBV","UBVbv",null,"UBVbv","UBV","UBV","UBVbv","BV",null,"BV","BVbv","BVbv","V","V","V","V","Vv","Vv"]
["UBVbv",null,"Belege",null,null,null,null,null,null,null,null,null,null,null,"von der Bewilligenden Stelle auszufüllen",null,null,null,null,"vom TPD auszufüllen","von der Bewilligenden Stelle auszufüllen (im Rahmen einer VOK)",null,null,null,null,"von der Bewilligenden Stelle auszufüllen"]
["UBVbv",null,"lfd.\nNr.","Belegdatum","Belegnr. / \nRechnungsnr.","Firma bzw. Name","Bezeichnung\n(Ware, Leistung)","Datum Saldierung\n(Zahlungs-\ndatum)","Einzahlungs-betrag\nbrutto","Mwst.\nSatz","Belegbetrag\nnetto","davon nicht anrechenbare Kosten","Abzüge \nin %","eingereichte  \nKosten\nnetto","nicht anrechenb. zu vermindernde\nKosten durch VWK","verminderte Kosten nach VWK","nicht anrechenb. zu\nsanktionierende Kosten durch VWK","anrechenbare Kosten nach VWK","Anmerkung zur VWK","Anmerkungen des TPD","nicht anrechenbare zu vermindernde Kosten durch VOK","verminderte Kosten nach VOK","nicht anrechenbare zu sanktionierende Kosten durch VOK","anrechenbare Kosten nach VOK","Anmerkung zur VOK","ermittelte Kosten gemäß Art. 35","Sanktion in % gemäß Art. 35","sanktionsrelevante Kosten\ngemäß Art. 35","Anmerkung zur Sanktion gemäß Art. 35 (VO 640/2014)"]
["-","Head",0,null,"-- Do not Erase --","-- Do not Erase --","-- Do not Erase --",null,null,null,{"$f":"IF(OR(ISBLANK(I22),ISBLANK(J22)),0,I22 / (1+J22))","v":0},null,null,{"$f":"(K22-L22)*(1-M22)","v":0},null,{"$f":"L22-M22-O22","v":0},null,{"$f":"N22-O22-Q22","v":0},null,null,null,{"$f":"R22-U22","v":0},null,{"$f":"R22-U22-W22","v":0},null,{"$f":"X22","v":0},null,{"$f":"Z22*AA22","v":0}]
["UBVbv","Receipt",{"$f":"C22+1","v":1},null,null,null,null,null,null,null,0,null,null,0,null,{"$f":"N23-O23","v":0},null,0,null,null,null,0,null,0,null,0,null,0]
["UBVbv","Receipt",{"$f":"C23+1","v":2},null,null,null,null,null,null,null,0,null,null,0,null,0,null,0,null,null,null,0,null,0,null,0,null,0]
["UBVbv","Receipt",3,null,null,null,null,null,null,null,0,null,null,0,null,0,null,0,null,null,null,0,null,0,null,0,null,0]
["UBVbv","Receipt",4,null,null,null,null,null,null,null,0,null,null,0,null,0,null,0,null,null,null,0,null,0,null,0,null,0]
["UBVbv","Receipt",5,null,null,null,null,null,null,null,{"$f":"IF(OR(ISBLANK(I27),ISBLANK(J27)),0,I27 / (1+J27))","v":0},null,null,0,null,0,null,0,null,null,null,{"$f":"R27-U27","v":0},null,{"$f":"R27-U27-W27","v":0},null,0,null,0]
["UBVbv","Receipt",6,null,null,null,null,null,null,null,0,null,null,0,null,0,null,0,null,null,null,0,null,0,null,0,null,0]
["UBVbv","Receipt",7,null,null,null,null,null,null,null,0,null,null,0,null,0,null,0,null,null,null,0,null,0,null,0,null,0]
["UBVbv","Receipt",8,null,null,null,null,null,null,null,0,null,null,0,null,0,null,0,null,null,null,0,null,0,null,0,null,0]
["UBVbv","Receipt",9,null,null,null,null,null,null,null,0,null,null,0,null,0,null,0,null,null,null,0,null,0,null,0,null,0]
["UBVbv","Receipt",10,null,null,null,null,null,null,null,{"$f":"IF(OR(ISBLANK(I32),ISBLANK(J32)),0,I32 / (1+J32))","v":0},null,null,0,null,0,null,0,null,null,null,{"$f":"R32-U32","v":0},null,{"$f":"R32-U32-W32","v":0},null,0,null,0]
["UBVbv","Receipt",{"$f":"C32+1","v":11},null,null,null,null,null,null,null,{"$f":"IF(OR(ISBLANK(I33),ISBLANK(J33)),0,I33 / (1+J33))","v":0},null,null,{"$f":"(K33-L33)*(1-M33)","v":0},null,{"$f":"N33-O33","v":0},null,{"$f":"N33-O33-Q33","v":0},null,null,null,{"$f":"R33-U33","v":0},null,{"$f":"R33-U33-W33","v":0},null,{"$f":"X33","v":0},null,{"$f":"Z33*AA33","v":0}]
["UBVbv","Receipt",12,null,null,null,null,null,null,null,0,null,null,0,null,0,null,0,null,null,null,0,null,0,null,0,null,0]
["UBVbv","Receipt",13,null,null,null,null,null,null,null,0,null,null,0,null,0,null,0,null,null,null,0,null,0,null,0,null,0]
["UBVbv","Receipt",14,null,null,null,null,null,null,null,0,null,null,0,null,0,null,0,null,null,null,0,null,0,null,0,null,0]
["UBVbv","Receipt",15,null,null,null,null,null,null,null,0,null,null,0,null,0,null,0,null,null,null,0,null,0,null,0,null,0]
["UBVbv","Receipt",{"$f":"C37+1","v":16},null,null,null,null,null,null,null,0,null,null,0,null,0,null,0,null,null,null,0,null,0,null,0,null,0]
["UBVbv","Receipt",17,null,null,null,null,null,null,null,0,null,null,0,null,0,null,0,null,null,null,0,null,0,null,0,null,0]
["UBVbv","Receipt",18,null,null,null,null,null,null,null,0,null,null,0,null,0,null,0,null,null,null,0,null,0,null,0,null,0]
["UBVbv","Receipt",{"$f":"C40+1","v":19},null,null,null,null,null,null,null,0,null,null,{"$f":"(K41-L41)*(1-M41)","v":0},null,{"$f":"N41-O41","v":0},null,0,null,null,null,0,null,0,null,0,null,0]
["UBVbv","Receipt",{"$f":"C41+1","v":20},null,null,null,null,null,null,null,0,null,null,{"$f":"(K42-L42)*(1-M42)","v":0},null,{"$f":"N42-O42","v":0},null,0,null,null,null,0,null,0,null,0,null,0]
["UBVbv","Receipt",{"$f":"C42+1","v":21},null,null,null,null,null,null,null,0,null,null,0,null,0,null,0,null,null,null,0,null,0,null,0,null,0]
["-","Tail",22,null,"-- Do not Erase --","-- Do not Erase --","-- Do not Erase --",null,null,null,0,null,null,0,null,0,null,0,null,null,null,0,null,0,null,0,null,0]
["UBVbv",null,null,null,null,null,null,null,null,null,null,"Gesamtsumme:",null,{"$f":"SUM(N22:N44)","v":0},{"$f":"SUM(O22:O44)","v":0},{"$f":"SUM(P22:P44)","v":0},{"$f":"SUM(Q22:Q44)","v":0},{"$f":"SUM(R22:R44)","v":0},null,null,{"$f":"SUM(U22:U44)","v":0},{"$f":"SUM(V22:V44)","v":0},{"$f":"SUM(W22:W44)","v":0},{"$f":"SUM(X22:X44)","v":0},null,null,null,{"$f":"SUM(AB22:AB44)","v":0}]
["U"]
["U"]
["U"]
["U"]
["U"]
["U",null,null,"Ort, Datum"]
["U"]
[]
[]
[null,null,null,"Datum",null,"Unterschrift oder firmenmäßge Zeichnung"]

{"sheet":"Teilprojekt 2","index":1,"n_rows":58,"n_cols":29,"rows_kept":58,"cut":false,"hidden":false,"merged":[[19,25,19,28],[0,2,0,18],[1,12,1,13],[2,12,2,13],[4,2,4,4],[4,5,4,6],[4,8,4,10],[4,11,4,18],[19,20,19,24],[19,14,19,18],[12,12,12,13],[13,12,13,13],[14,12,14,13],[10,12,10,13],[6,2,6,4],[6,5,6,6],[50,3,50,5],[50,7,50,11],[12,2,12,4],[13,2,13,4],[19,2,19,13],[15,2,15,5],[8,2,8,4],[8,5,8,6],[10,2,10,4],[49,3,49,5],[49,7,49,11]]}
[":","Investkosten","Belegaufstellung für Investitionskosten"]
[":","Sachkosten","Zahlungsantrag - Belegaufstellung für Sachkosten"]
[":","Invest- & Sachkosten","Zahlungsantrag - Belegaufstellung für Investitions- und Sachkosten"]
[]
[null,null,"Betriebs-/Klientennummer: ",null,null,{"$f":"'Teilprojekt 1'!F5:G5","v":0},null,null,"(Teil)-Projektbezeichnung"]
["UBVbv"]
["UBVbv",null,"Förderungswerber: ",null,null,{"$f":"'Teilprojekt 1'!F7:G7","v":0},null,null,"Achtung: für jedes Teilprojekt wie z.B.: Stall, Melktechnik, Silo, Güllegrube ist ein eigenes Tabellenblatt zu verwenden"]
["UBVbv"]
["UBVbv",null,"Antragsnummer: ",null,null,{"$f":"'Teilprojekt 1'!F9:G9","v":0},null,null,"Eigenleistung: eingesetztes Bauholz (als Nachweis sind Holzschnittrechnung bzw. Holzauszug beizulegen!)"]
["UBVbv"]
["UBVbv",null,"Vorsteuerabzugsberechtigung: ",null,null,"Ja","Ja",null,null,null,"Menge","Kostensatz","Nettowert"]
["UBVbv"]
["UBVbv",null,"Genehmigter Zeitraum für  ",null,null,"Beginn","Ende",null,"Rundholz (fm):",null,null,95,{"$f":"L13*K13","v":0}]
["UBVbv",null,"Kostenanerkennung laut Bewilligung:",null,null,{"$f":"'Teilprojekt 1'!InvMat_SupportPeriodStartCell","v":"00:00:00"},{"$f":"'Teilprojekt 1'!InvMat_SupportPeriodEndCell","v":"00:00:00"},null,"Schnittholz (rm):",null,null,250,{"$f":"L14*K14","v":0}]
["UBVbv",null,null,null,null,null,null,null,null,null,null,"Summe:",{"$f":"SUM(M13:N14)","v":0}]
["UBVbv",null,"Buttons zur internen Verwendung der Bewilligenden Stelle"]
["UBVbv"]
["UBVbv"]
["-","-","UBVbv","UBVbv","UBVbv","UBVbv","UBV","UBV","UBVbv",null,"UBVbv","UBV","UBV","UBVbv","BV",null,"BV","BVbv","BVbv","V","V","V","V","Vv","Vv"]
["UBVbv",null,"Belege",null,null,null,null,null,null,null,null,null,null,null,"von der Bewilligenden Stelle auszufüllen",null,null,null,null,"vom TPD auszufüllen","von der Bewilligenden Stelle auszufüllen (im Rahmen einer VOK)",null,null,null,null,"von der Bewilligenden Stelle auszufüllen"]
["UBVbv",null,"lfd.\nNr.","Belegdatum","Belegnr. / \nRechnungsnr.","Firma bzw. Name","Bezeichnung\n(Ware, Leistung)","Datum Saldierung\n(Zahlungs-\ndatum)","Einzahlungs-betrag\nbrutto","Mwst.\nSatz","Belegbetrag\nnetto","davon nicht anrechenbare Kosten","Abzüge \nin %","eingereichte  \nKosten\nnetto","nicht anrechenb. zu vermindernde\nKosten durch VWK","verminderte Kosten nach VWK","nicht anrechenb. zu\nsanktionierende Kosten durch VWK","anrechenbare Kosten nach VWK","Anmerkung zur VWK","Anmerkungen des TPD","nicht anrechenbare zu vermindernde Kosten durch VOK","verminderte Kosten nach VOK","nicht anrechenbare zu sanktionierende Kosten durch VOK","anrechenbare Kosten nach VOK","Anmerkung zur VOK","ermittelte Kosten gemäß Art. 35","Sanktion in % gemäß Art. 35","sanktionsrelevante Kosten\ngemäß Art. 35","Anmerkung zur Sanktion gemäß Art. 35 (VO 640/2014)"]
["-","Head",0,null,"-- Do not Erase --","-- Do not Erase --","-- Do not Erase --",null,null,null,{"$f":"IF(OR(ISBLANK(I22),ISBLANK(J22)),0,I22 / (1+J22))","v":0},null,null,{"$f":"(K22-L22)*(1-M22)","v":0},null,{"$f":"L22-M22-O22","v":0},null,{"$f":"N22-O22-Q22","v":0},null,null,null,{"$f":"R22-U22","v":0},null,{"$f":"R22-U22-W22","v":0},null,{"$f":"X22","v":0},null,{"$f":"Z22*AA22","v":0}]
["UBVbv","Receipt",{"$f":"C22+1","v":1},null,null,null,null,null,null,null,{"$f":"IF(OR(ISBLANK(I23),ISBLANK(J23)),0,I23 / (1+J23))","v":0},null,null,{"$f":"(K23-L23)*(1-M23)","v":0},null,{"$f":"N23-O23","v":0},null,{"$f":"N23-O23-Q23","v":0},null,null,null,{"$f":"R23-U23","v":0},null,{"$f":"R23-U23-W23","v":0},null,{"$f":"X23","v":0},null,{"$f":"Z23*AA23","v":0}]
["UBVbv","Receipt",{"$f":"C23+1","v":2},null,null,null,null,null,null,null,{"$f":"IF(OR(ISBLANK(I24),ISBLANK(J24)),0,I24 / (1+J24))","v":0},null,null,{"$f":"(K24-L24)*(1-M24)","v":0},null,{"$f":"N24-O24","v":0},null,{"$f":"N24-O24-Q24","v":0},null,null,null,{"$f":"R24-U24","v":0},null,{"$f":"R24-U24-W24","v":0},null,{"$f":"X24","v":0},null,{"$f":"Z24*AA24","v":0}]
["UBVbv","Receipt",{"$f":"C24+1","v":3},null,null,null,null,null,null,null,{"$f":"IF(OR(ISBLANK(I25),ISBLANK(J25)),0,I25 / (1+J25))","v":0},null,null,{"$f":"(K25-L25)*(1-M25)","v":0},null,{"$f":"N25-O25","v":0},null,{"$f":"N25-O25-Q25","v":0},null,null,null,{"$f":"R25-U25","v":0},null,{"$f":"R25-U25-W25","v":0},null,{"$f":"X25","v":0},null,{"$f":"Z25*AA25","v":0}]
["UBVbv","Receipt",{"$f":"C25+1","v":4},null,null,null,null,null,null,null,{"$f":"IF(OR(ISBLANK(I26),ISBLANK(J26)),0,I26 / (1+J26))","v":0},null,null,{"$f":"(K26-L26)*(1-M26)","v":0},null,{"$f":"N26-O26","v":0},null,{"$f":"N26-O26-Q26","v":0},null,null,null,{"$f":"R26-U26","v":0},null,{"$f":"R26-U26-W26","v":0},null,{"$f":"X26","v":0},null,{"$f":"Z26*AA26","v":0}]
["UBVbv","Receipt",{"$f":"C26+1","v":5},null,null,null,null,null,null,null,{"$f":"IF(OR(ISBLANK(I27),ISBLANK(J27)),0,I27 / (1+J27))","v":0},null,null,{"$f":"(K27-L27)*(1-M27)","v":0},null,{"$f":"N27-O27","v":0},null,{"$f":"N27-O27-Q27","v":0},null,null,null,{"$f":"R27-U27","v":0},null,{"$f":"R27-U27-W27","v":0},null,{"$f":"X27","v":0},null,{"$f":"Z27*AA27","v":0}]
["UBVbv","Receipt",{"$f":"C27+1","v":6},null,null,null,null,null,null,null,{"$f":"IF(OR(ISBLANK(I28),ISBLANK(J28)),0,I28 / (1+J28))","v":0},null,null,{"$f":"(K28-L28)*(1-M28)","v":0},null,{"$f":"N28-O28","v":0},null,{"$f":"N28-O28-Q28","v":0},null,null,null,{"$f":"R28-U28","v":0},null,{"$f":"R28-U28-W28","v":0},null,{"$f":"X28","v":0},null,{"$f":"Z28*AA28","v":0}]
["UBVbv","Receipt",{"$f":"C28+1","v":7},null,null,null,null,null,null,null,{"$f":"IF(OR(ISBLANK(I29),ISBLANK(J29)),0,I29 / (1+J29))","v":0},null,null,{"$f":"(K29-L29)*(1-M29)","v":0},null,{"$f":"N29-O29","v":0},null,{"$f":"N29-O29-Q29","v":0},null,null,null,{"$f":"R29-U29","v":0},null,{"$f":"R29-U29-W29","v":0},null,{"$f":"X29","v":0},null,{"$f":"Z29*AA29","v":0}]
["UBVbv","Receipt",{"$f":"C29+1","v":8},null,null,null,null,null,null,null,{"$f":"IF(OR(ISBLANK(I30),ISBLANK(J30)),0,I30 / (1+J30))","v":0},null,null,{"$f":"(K30-L30)*(1-M30)","v":0},null,{"$f":"N30-O30","v":0},null,{"$f":"N30-O30-Q30","v":0},null,null,null,{"$f":"R30-U30","v":0},null,{"$f":"R30-U30-W30","v":0},null,{"$f":"X30","v":0},null,{"$f":"Z30*AA30","v":0}]
["UBVbv","Receipt",{"$f":"C30+1","v":9},null,null,null,null,null,null,null,{"$f":"IF(OR(ISBLANK(I31),ISBLANK(J31)),0,I31 / (1+J31))","v":0},null,null,{"$f":"(K31-L31)*(1-M31)","v":0},null,{"$f":"N31-O31","v":0},null,{"$f":"N31-O31-Q31","v":0},null,null,null,{"$f":"R31-U31","v":0},null,{"$f":"R31-U31-W31","v":0},null,{"$f":"X31","v":0},null,{"$f":"Z31*AA31","v":0}]
["UBVbv","Receipt",{"$f":"C31+1","v":10},null,null,null,null,null,null,null,{"$f":"IF(OR(ISBLANK(I32),ISBLANK(J32)),0,I32 / (1+J32))","v":0},null,null,{"$f":"(K32-L32)*(1-M32)","v":0},null,{"$f":"N32-O32","v":0},null,{"$f":"N32-O32-Q32","v":0},null,null,null,{"$f":"R32-U32","v":0},null,{"$f":"R32-U32-W32","v":0},null,{"$f":"X32","v":0},null,{"$f":"Z32*AA32","v":0}]
["UBVbv","Receipt",{"$f":"C32+1","v":11},null,null,null,null,null,null,null,{"$f":"IF(OR(ISBLANK(I33),ISBLANK(J33)),0,I33 / (1+J33))","v":0},null,null,{"$f":"(K33-L33)*(1-M33)","v":0},null,{"$f":"N33-O33","v":0},null,{"$f":"N33-O33-Q33","v":0},null,null,null,{"$f":"R33-U33","v":0},null,{"$f":"R33-U33-W33","v":0},null,{"$f":"X33","v":0},null,{"$f":"Z33*AA33","v":0}]
["UBVbv","Receipt",{"$f":"C33+1","v":12},null,null,null,null,null,null,null,{"$f":"IF(OR(ISBLANK(I34),ISBLANK(J34)),0,I34 / (1+J34))","v":0},null,null,{"$f":"(K34-L34)*(1-M34)","v":0},null,{"$f":"N34-O34","v":0},null,{"$f":"N34-O34-Q34","v":0},null,null,null,{"$f":"R34-U34","v":0},null,{"$f":"R34-U34-W34","v":0},null,{"$f":"X34","v":0},null,{"$f":"Z34*AA34","v":0}]
["UBVbv","Receipt",{"$f":"C34+1","v":13},null,null,null,null,null,null,null,{"$f":"IF(OR(ISBLANK(I35),ISBLANK(J35)),0,I35 / (1+J35))","v":0},null,null,0,null,{"$f":"N35-O35","v":0},null,0,null,null,null,{"$f":"R35-U35","v":0},null,{"$f":"R35-U35-W35","v":0},null,0,null,0]
["UBVbv","Receipt",{"$f":"C35+1","v":14},null,null,null,null,null,null,null,{"$f":"IF(OR(ISBLANK(I36),ISBLANK(J36)),0,I36 / (1+J36))","v":0},null,null,0,null,{"$f":"N36-O36","v":0},null,0,null,null,null,{"$f":"R36-U36","v":0},null,{"$f":"R36-U36-W36","v":0},null,0,null,0]
["UBVbv","Receipt",15,null,null,null,null,null,null,null,{"$f":"IF(OR(ISBLANK(I37),ISBLANK(J37)),0,I37 / (1+J37))","v":0},null,null,0,null,{"$f":"N37-O37","v":0},null,0,null,null,null,{"$f":"R37-U37","v":0},null,{"$f":"R37-U37-W37","v":0},null,0,null,0]
["UBVbv","Receipt",16,null,null,null,null,null,null,null,0,null,null,0,null,0,null,{"$f":"N38-O38-Q38","v":0},null,null,null,0,null,0,null,{"$f":"X38","v":0},null,{"$f":"Z38*AA38","v":0}]
["UBVbv","Receipt",17,null,null,null,null,null,null,null,0,null,null,0,null,0,null,{"$f":"N39-O39-Q39","v":0},null,null,null,0,null,0,null,{"$f":"X39","v":0},null,{"$f":"Z39*AA39","v":0}]
["UBVbv","Receipt",18,null,null,null,null,null,null,null,0,null,null,0,null,0,null,{"$f":"N40-O40-Q40","v":0},null,null,null,0,null,0,null,{"$f":"X40","v":0},null,{"$f":"Z40*AA40","v":0}]
["UBVbv","Receipt",19,null,null,null,null,null,null,null,0,null,null,0,null,0,null,{"$f":"N41-O41-Q41","v":0},null,null,null,0,null,0,null,{"$f":"X41","v":0},null,{"$f":"Z41*AA41","v":0}]
["UBVbv","Receipt",20,null,null,null,null,null,null,null,0,null,null,0,null,0,null,{"$f":"N42-O42-Q42","v":0},null,null,null,0,null,0,null,{"$f":"X42","v":0},null,{"$f":"Z42*AA42","v":0}]
["UBVbv","Receipt",{"$f":"C42+1","v":21},null,null,null,null,null,null,null,{"$f":"IF(OR(ISBLANK(I43),ISBLANK(J43)),0,I43 / (1+J43))","v":0},null,null,0,null,{"$f":"N43-O43","v":0},null,0,null,null,null,{"$f":"R43-U43","v":0},null,{"$f":"R43-U43-W43","v":0},null,0,null,0]
["-","Tail",22,null,"-- Do not Erase --","-- Do not Erase --","-- Do not Erase --",null,null,null,{"$f":"IF(OR(ISBLANK(I44),ISBLANK(J44)),0,I44 / (1+J44))","v":0},null,null,0,null,{"$f":"N44-O44","v":0},null,0,null,null,null,{"$f":"R44-U44","v":0},null,{"$f":"R44-U44-W44","v":0},null,0,null,0]
["UBVbv",null,null,null,null,null,null,null,null,null,null,"Gesamtsumme:",null,{"$f":"SUM(N22:N44)","v":0},{"$f":"SUM(O22:O44)","v":0},{"$f":"SUM(P22:P44)","v":0},{"$f":"SUM(Q22:Q44)","v":0},{"$f":"SUM(R22:R44)","v":0},null,null,{"$f":"SUM(U22:U44)","v":0},{"$f":"SUM(V22:V44)","v":0},{"$f":"SUM(W22:W44)","v":0},{"$f":"SUM(X22:X44)","v":0},null,null,null,{"$f":"SUM(AB22:AB44)","v":0}]
["U"]
["U"]
["U"]
["U"]
["U"]
["U",null,null,"Ort, Datum"]
["U"]
[]
[]
[]
[]
[]
[null,null,null,"Datum",null,"Unterschrift oder firmenmäßge Zeichnung"]

{"sheet":"Teilprojekt 3","index":2,"n_rows":58,"n_cols":29,"rows_kept":58,"cut":false,"hidden":false,"merged":[[19,25,19,28],[0,2,0,18],[1,12,1,13],[2,12,2,13],[4,2,4,4],[4,5,4,6],[4,8,4,10],[4,11,4,18],[6,2,6,4],[6,5,6,6],[19,14,19,18],[8,2,8,4],[8,5,8,6],[10,2,10,4],[10,12,10,13],[12,2,12,4],[12,12,12,13],[19,20,19,24],[49,3,49,5],[49,7,49,11],[50,3,50,5],[50,7,50,11],[13,2,13,4],[13,12,13,13],[14,12,14,13],[15,2,15,5],[19,2,19,13]]}
[":","Investkosten","Belegaufstellung für Investitionskosten"]
[":","Sachkosten","Zahlungsantrag - Belegaufstellung für Sachkosten"]
[":","Invest- & Sachkosten","Zahlungsantrag - Belegaufstellung für Investitions- und Sachkosten"]
[]
[null,null,"Betriebs-/Klientennummer: ",null,null,{"$f":"'Teilprojekt 1'!F5:G5","v":0},null,null,"(Teil)-Projektbezeichnung"]
["UBVbv"]
["UBVbv",null,"Förderungswerber: ",null,null,{"$f":"'Teilprojekt 1'!F7:G7","v":0},null,null,"Achtung: für jedes Teilprojekt wie z.B.: Stall, Melktechnik, Silo, Güllegrube ist ein eigenes Tabellenblatt zu verwenden"]
["UBVbv"]
["UBVbv",null,"Antragsnummer: ",null,null,{"$f":"'Teilprojekt 1'!F9:G9","v":0},null,null,"Eigenleistung: eingesetztes Bauholz (als Nachweis sind Holzschnittrechnung bzw. Holzauszug beizulegen!)"]
["UBVbv"]
["UBVbv",null,"Vorsteuerabzugsberechtigung: ",null,null,"Ja","Ja",null,null,null,"Menge","Kostensatz","Nettowert"]
["UBVbv"]
["UBVbv",null,"Genehmigter Zeitraum für  ",null,null,"Beginn","Ende",null,"Rundholz (fm):",null,null,95,{"$f":"L13*K13","v":0}]
["UBVbv",null,"Kostenanerkennung laut Bewilligung:",null,null,{"$f":"'Teilprojekt 1'!InvMat_SupportPeriodStartCell","v":"00:00:00"},{"$f":"'Teilprojekt 1'!InvMat_SupportPeriodEndCell","v":"00:00:00"},null,"Schnittholz (rm):",null,null,250,{"$f":"L14*K14","v":0}]
["UBVbv",null,null,null,null,null,null,null,null,null,null,"Summe:",{"$f":"SUM(M13:N14)","v":0}]
["UBVbv",null,"Buttons zur internen Verwendung der Bewilligenden Stelle"]
["UBVbv"]
["UBVbv"]
["-","-","UBVbv","UBVbv","UBVbv","UBVbv","UBV","UBV","UBVbv",null,"UBVbv","UBV","UBV","UBVbv","BV",null,"BV","BVbv","BVbv","V","V","V","V","Vv","Vv"]
["UBVbv",null,"Belege",null,null,null,null,null,null,null,null,null,null,null,"von der Bewilligenden Stelle auszufüllen",null,null,null,null,"vom TPD auszufüllen","von der Bewilligenden Stelle auszufüllen (im Rahmen einer VOK)",null,null,null,null,"von der Bewilligenden Stelle auszufüllen"]
["UBVbv",null,"lfd.\nNr.","Belegdatum","Belegnr. / \nRechnungsnr.","Firma bzw. Name","Bezeichnung\n(Ware, Leistung)","Datum Saldierung\n(Zahlungs-\ndatum)","Einzahlungs-betrag\nbrutto","Mwst.\nSatz","Belegbetrag\nnetto","davon nicht anrechenbare Kosten","Abzüge \nin %","eingereichte  \nKosten\nnetto","nicht anrechenb. zu vermindernde\nKosten durch VWK","verminderte Kosten nach VWK","nicht anrechenb. zu\nsanktionierende Kosten durch VWK","anrechenbare Kosten nach VWK","Anmerkung zur VWK","Anmerkungen des TPD","nicht anrechenbare zu vermindernde Kosten durch VOK","verminderte Kosten nach VOK","nicht anrechenbare zu sanktionierende Kosten durch VOK","anrechenbare Kosten nach VOK","Anmerkung zur VOK","ermittelte Kosten gemäß Art. 35","Sanktion in % gemäß Art. 35","sanktionsrelevante Kosten\ngemäß Art. 35","Anmerkung zur Sanktion gemäß Art. 35 (VO 640/2014)"]
["-","Head",0,null,"-- Do not Erase --","-- Do not Erase --","-- Do not Erase --",null,null,null,{"$f":"IF(OR(ISBLANK(I22),ISBLANK(J22)),0,I22 / (1+J22))","v":0},null,null,{"$f":"(K22-L22)*(1-M22)","v":0},null,{"$f":"L22-M22-O22","v":0},null,{"$f":"N22-O22-Q22","v":0},null,null,null,{"$f":"R22-U22","v":0},null,{"$f":"R22-U22-W22","v":0},null,{"$f":"X22","v":0},null,{"$f":"Z22*AA22","v":0}]
["UBVbv","Receipt",{"$f":"C22+1","v":1},null,null,null,null,null,null,null,{"$f":"IF(OR(ISBLANK(I23),ISBLANK(J23)),0,I23 / (1+J23))","v":0},null,null,{"$f":"(K23-L23)*(1-M23)","v":0},null,{"$f":"N23-O23","v":0},null,{"$f":"N23-O23-Q23","v":0},null,null,null,{"$f":"R23-U23","v":0},null,{"$f":"R23-U23-W23","v":0},null,{"$f":"X23","v":0},null,{"$f":"Z23*AA23","v":0}]
["UBVbv","Receipt",{"$f":"C23+1","v":2},null,null,null,null,null,null,null,{"$f":"IF(OR(ISBLANK(I24),ISBLANK(J24)),0,I24 / (1+J24))","v":0},null,null,{"$f":"(K24-L24)*(1-M24)","v":0},null,{"$f":"N24-O24","v":0},null,{"$f":"N24-O24-Q24","v":0},null,null,null,{"$f":"R24-U24","v":0},null,{"$f":"R24-U24-W24","v":0},null,{"$f":"X24","v":0},null,{"$f":"Z24*AA24","v":0}]
["UBVbv","Receipt",{"$f":"C24+1","v":3},null,null,null,null,null,null,null,{"$f":"IF(OR(ISBLANK(I25),ISBLANK(J25)),0,I25 / (1+J25))","v":0},null,null,{"$f":"(K25-L25)*(1-M25)","v":0},null,{"$f":"N25-O25","v":0},null,{"$f":"N25-O25-Q25","v":0},null,null,null,{"$f":"R25-U25","v":0},null,{"$f":"R25-U25-W25","v":0},null,{"$f":"X25","v":0},null,{"$f":"Z25*AA25","v":0}]
["UBVbv","Receipt",{"$f":"C25+1","v":4},null,null,null,null,null,null,null,{"$f":"IF(OR(ISBLANK(I26),ISBLANK(J26)),0,I26 / (1+J26))","v":0},null,null,{"$f":"(K26-L26)*(1-M26)","v":0},null,{"$f":"N26-O26","v":0},null,{"$f":"N26-O26-Q26","v":0},null,null,null,{"$f":"R26-U26","v":0},null,{"$f":"R26-U26-W26","v":0},null,{"$f":"X26","v":0},null,{"$f":"Z26*AA26","v":0}]
["UBVbv","Receipt",{"$f":"C26+1","v":5},null,null,null,null,null,null,null,{"$f":"IF(OR(ISBLANK(I27),ISBLANK(J27)),0,I27 / (1+J27))","v":0},null,null,{"$f":"(K27-L27)*(1-M27)","v":0},null,{"$f":"N27-O27","v":0},null,{"$f":"N27-O27-Q27","v":0},null,null,null,{"$f":"R27-U27","v":0},null,{"$f":"R27-U27-W27","v":0},null,{"$f":"X27","v":0},null,{"$f":"Z27*AA27","v":0}]
["UBVbv","Receipt",{"$f":"C27+1","v":6},null,null,null,null,null,null,null,{"$f":"IF(OR(ISBLANK(I28),ISBLANK(J28)),0,I28 / (1+J28))","v":0},null,null,{"$f":"(K28-L28)*(1-M28)","v":0},null,{"$f":"N28-O28","v":0},null,{"$f":"N28-O28-Q28","v":0},null,null,null,{"$f":"R28-U28","v":0},null,{"$f":"R28-U28-W28","v":0},null,{"$f":"X28","v":0},null,{"$f":"Z28*AA28","v":0}]
["UBVbv","Receipt",{"$f":"C28+1","v":7},null,null,null,null,null,null,null,{"$f":"IF(OR(ISBLANK(I29),ISBLANK(J29)),0,I29 / (1+J29))","v":0},null,null,{"$f":"(K29-L29)*(1-M29)","v":0},null,{"$f":"N29-O29","v":0},null,{"$f":"N29-O29-Q29","v":0},null,null,null,{"$f":"R29-U29","v":0},null,{"$f":"R29-U29-W29","v":0},null,{"$f":"X29","v":0},null,{"$f":"Z29*AA29","v":0}]
["UBVbv","Receipt",{"$f":"C29+1","v":8},null,null,null,null,null,null,null,{"$f":"IF(OR(ISBLANK(I30),ISBLANK(J30)),0,I30 / (1+J30))","v":0},null,null,{"$f":"(K30-L30)*(1-M30)","v":0},null,{"$f":"N30-O30","v":0},null,{"$f":"N30-O30-Q30","v":0},null,null,null,{"$f":"R30-U30","v":0},null,{"$f":"R30-U30-W30","v":0},null,{"$f":"X30","v":0},null,{"$f":"Z30*AA30","v":0}]
["UBVbv","Receipt",{"$f":"C30+1","v":9},null,null,null,null,null,null,null,{"$f":"IF(OR(ISBLANK(I31),ISBLANK(J31)),0,I31 / (1+J31))","v":0},null,null,{"$f":"(K31-L31)*(1-M31)","v":0},null,{"$f":"N31-O31","v":0},null,{"$f":"N31-O31-Q31","v":0},null,null,null,{"$f":"R31-U31","v":0},null,{"$f":"R31-U31-W31","v":0},null,{"$f":"X31","v":0},null,{"$f":"Z31*AA31","v":0}]
["UBVbv","Receipt",{"$f":"C31+1","v":10},null,null,null,null,null,null,null,{"$f":"IF(OR(ISBLANK(I32),ISBLANK(J32)),0,I32 / (1+J32))","v":0},null,null,{"$f":"(K32-L32)*(1-M32)","v":0},null,{"$f":"N32-O32","v":0},null,{"$f":"N32-O32-Q32","v":0},null,null,null,{"$f":"R32-U32","v":0},null,{"$f":"R32-U32-W32","v":0},null,{"$f":"X32","v":0},null,{"$f":"Z32*AA32","v":0}]
["UBVbv","Receipt",{"$f":"C32+1","v":11},null,null,null,null,null,null,null,0,null,null,0,null,{"$f":"N33-O33","v":0},null,0,null,null,null,0,null,0,null,0,null,0]
["UBVbv","Receipt",{"$f":"C33+1","v":12},null,null,null,null,null,null,null,0,null,null,0,null,{"$f":"N34-O34","v":0},null,0,null,null,null,0,null,0,null,0,null,0]
["UBVbv","Receipt",13,null,null,null,null,null,null,null,0,null,null,0,null,0,null,0,null,null,null,0,null,0,null,0,null,0]
["UBVbv","Receipt",14,null,null,null,null,null,null,null,0,null,null,0,null,0,null,0,null,null,null,0,null,0,null,0,null,0]
["UBVbv","Receipt",15,null,null,null,null,null,null,null,{"$f":"IF(OR(ISBLANK(I37),ISBLANK(J37)),0,I37 / (1+J37))","v":0},null,null,0,null,{"$f":"N37-O37","v":0},null,0,null,null,null,{"$f":"R37-U37","v":0},null,{"$f":"R37-U37-W37","v":0},null,0,null,0]
["UBVbv","Receipt",16,null,null,null,null,null,null,null,0,null,null,0,null,0,null,{"$f":"N38-O38-Q38","v":0},null,null,null,0,null,0,null,{"$f":"X38","v":0},null,{"$f":"Z38*AA38","v":0}]
["UBVbv","Receipt",17,null,null,null,null,null,null,null,0,null,null,0,null,0,null,{"$f":"N39-O39-Q39","v":0},null,null,null,0,null,0,null,{"$f":"X39","v":0},null,{"$f":"Z39*AA39","v":0}]
["UBVbv","Receipt",18,null,null,null,null,null,null,null,0,null,null,0,null,0,null,{"$f":"N40-O40-Q40","v":0},null,null,null,0,null,0,null,{"$f":"X40","v":0},null,{"$f":"Z40*AA40","v":0}]
["UBVbv","Receipt",19,null,null,null,null,null,null,null,0,null,null,0,null,0,null,{"$f":"N41-O41-Q41","v":0},null,null,null,0,null,0,null,{"$f":"X41","v":0},null,{"$f":"Z41*AA41","v":0}]
["UBVbv","Receipt",20,null,null,null,null,null,null,null,0,null,null,0,null,0,null,{"$f":"N42-O42-Q42","v":0},null,null,null,0,null,0,null,{"$f":"X42","v":0},null,{"$f":"Z42*AA42","v":0}]
["UBVbv","Receipt",{"$f":"C42+1","v":21},null,null,null,null,null,null,null,0,null,null,0,null,0,null,0,null,null,null,0,null,0,null,0,null,0]
["-","Tail",22,null,"-- Do not Erase --","-- Do not Erase --","-- Do not Erase --",null,null,null,0,null,null,0,null,0,null,0,null,null,null,0,null,0,null,0,null,0]
["UBVbv",null,null,null,null,null,null,null,null,null,null,"Gesamtsumme:",null,{"$f":"SUM(N22:N44)","v":0},{"$f":"SUM(O22:O44)","v":0},{"$f":"SUM(P22:P44)","v":0},{"$f":"SUM(Q22:Q44)","v":0},{"$f":"SUM(R22:R44)","v":0},null,null,{"$f":"SUM(U22:U44)","v":0},{"$f":"SUM(V22:V44)","v":0},{"$f":"SUM(W22:W44)","v":0},{"$f":"SUM(X22:X44)","v":0},null,null,null,{"$f":"SUM(AB22:AB44)","v":0}]
["U"]
["U"]
["U"]
["U"]
["U"]
["U",null,null,"Ort, Datum"]
["U"]
[]
[]
[]
[]
[]
[null,null,null,"Datum",null,"Unterschrift oder firmenmäßge Zeichnung"]

{"sheet":"Teilprojekt 4","index":3,"n_rows":58,"n_cols":29,"rows_kept":58,"cut":false,"hidden":false,"merged":[[19,25,19,28],[0,2,0,18],[1,12,1,13],[2,12,2,13],[4,2,4,4],[4,5,4,6],[4,8,4,10],[4,11,4,18],[6,2,6,4],[6,5,6,6],[19,14,19,18],[8,2,8,4],[8,5,8,6],[10,2,10,4],[10,12,10,13],[12,2,12,4],[12,12,12,13],[19,20,19,24],[49,3,49,5],[49,7,49,11],[50,3,50,5],[50,7,50,11],[13,2,13,4],[13,12,13,13],[14,12,14,13],[15,2,15,5],[19,2,19,13]]}
[":","Investkosten","Belegaufstellung für Investitionskosten"]
[":","Sachkosten","Zahlungsantrag - Belegaufstellung für Sachkosten"]
[":","Invest- & Sachkosten","Zahlungsantrag - Belegaufstellung für Investitions- und Sachkosten"]
[]
[null,null,"Betriebs-/Klientennummer: ",null,null,{"$f":"'Teilprojekt 1'!F5:G5","v":0},null,null,"(Teil)-Projektbezeichnung"]
["UBVbv"]
["UBVbv",null,"Förderungswerber: ",null,null,{"$f":"'Teilprojekt 1'!F7:G7","v":0},null,null,"Achtung: für jedes Teilprojekt wie z.B.: Stall, Melktechnik, Silo, Güllegrube ist ein eigenes Tabellenblatt zu verwenden"]
["UBVbv"]
["UBVbv",null,"Antragsnummer: ",null,null,{"$f":"'Teilprojekt 1'!F9:G9","v":0},null,null,"Eigenleistung: eingesetztes Bauholz (als Nachweis sind Holzschnittrechnung bzw. Holzauszug beizulegen!)"]
["UBVbv"]
["UBVbv",null,"Vorsteuerabzugsberechtigung: ",null,null,"Ja","Ja",null,null,null,"Menge","Kostensatz","Nettowert"]
["UBVbv"]
["UBVbv",null,"Genehmigter Zeitraum für  ",null,null,"Beginn","Ende",null,"Rundholz (fm):",null,null,95,{"$f":"L13*K13","v":0}]
["UBVbv",null,"Kostenanerkennung laut Bewilligung:",null,null,{"$f":"'Teilprojekt 1'!InvMat_SupportPeriodStartCell","v":"00:00:00"},{"$f":"'Teilprojekt 1'!InvMat_SupportPeriodEndCell","v":"00:00:00"},null,"Schnittholz (rm):",null,null,250,{"$f":"L14*K14","v":0}]
["UBVbv",null,null,null,null,null,null,null,null,null,null,"Summe:",{"$f":"SUM(M13:N14)","v":0}]
["UBVbv",null,"Buttons zur internen Verwendung der Bewilligenden Stelle"]
["UBVbv"]
["UBVbv"]
["-","-","UBVbv","UBVbv","UBVbv","UBVbv","UBV","UBV","UBVbv",null,"UBVbv","UBV","UBV","UBVbv","BV",null,"BV","BVbv","BVbv","V","V","V","V","Vv","Vv"]
["UBVbv",null,"Belege",null,null,null,null,null,null,null,null,null,null,null,"von der Bewilligenden Stelle auszufüllen",null,null,null,null,"vom TPD auszufüllen","von der Bewilligenden Stelle auszufüllen (im Rahmen einer VOK)",null,null,null,null,"von der Bewilligenden Stelle auszufüllen"]
["UBVbv",null,"lfd.\nNr.","Belegdatum","Belegnr. / \nRechnungsnr.","Firma bzw. Name","Bezeichnung\n(Ware, Leistung)","Datum Saldierung\n(Zahlungs-\ndatum)","Einzahlungs-betrag\nbrutto","Mwst.\nSatz","Belegbetrag\nnetto","davon nicht anrechenbare Kosten","Abzüge \nin %","eingereichte  \nKosten\nnetto","nicht anrechenb. zu vermindernde\nKosten durch VWK","verminderte Kosten nach VWK","nicht anrechenb. zu\nsanktionierende Kosten durch VWK","anrechenbare Kosten nach VWK","Anmerkung zur VWK","Anmerkungen des TPD","nicht anrechenbare zu vermindernde Kosten durch VOK","verminderte Kosten nach VOK","nicht anrechenbare zu sanktionierende Kosten durch VOK","anrechenbare Kosten nach VOK","Anmerkung zur VOK","ermittelte Kosten gemäß Art. 35","Sanktion in % gemäß Art. 35","sanktionsrelevante Kosten\ngemäß Art. 35","Anmerkung zur Sanktion gemäß Art. 35 (VO 640/2014)"]
["-","Head",0,null,"-- Do not Erase --","-- Do not Erase --","-- Do not Erase --",null,null,null,{"$f":"IF(OR(ISBLANK(I22),ISBLANK(J22)),0,I22 / (1+J22))","v":0},null,null,{"$f":"(K22-L22)*(1-M22)","v":0},null,{"$f":"L22-M22-O22","v":0},null,{"$f":"N22-O22-Q22","v":0},null,null,null,{"$f":"R22-U22","v":0},null,{"$f":"R22-U22-W22","v":0},null,{"$f":"X22","v":0},null,{"$f":"Z22*AA22","v":0}]
["UBVbv","Receipt",{"$f":"C22+1","v":1},null,null,null,null,null,null,null,{"$f":"IF(OR(ISBLANK(I23),ISBLANK(J23)),0,I23 / (1+J23))","v":0},null,null,{"$f":"(K23-L23)*(1-M23)","v":0},null,{"$f":"N23-O23","v":0},null,{"$f":"N23-O23-Q23","v":0},null,null,null,{"$f":"R23-U23","v":0},null,{"$f":"R23-U23-W23","v":0},null,{"$f":"X23","v":0},null,{"$f":"Z23*AA23","v":0}]
["UBVbv","Receipt",{"$f":"C23+1","v":2},null,null,null,null,null,null,null,{"$f":"IF(OR(ISBLANK(I24),ISBLANK(J24)),0,I24 / (1+J24))","v":0},null,null,{"$f":"(K24-L24)*(1-M24)","v":0},null,{"$f":"N24-O24","v":0},null,{"$f":"N24-O24-Q24","v":0},null,null,null,{"$f":"R24-U24","v":0},null,{"$f":"R24-U24-W24","v":0},null,{"$f":"X24","v":0},null,{"$f":"Z24*AA24","v":0}]
["UBVbv","Receipt",{"$f":"C24+1","v":3},null,null,null,null,null,null,null,{"$f":"IF(OR(ISBLANK(I25),ISBLANK(J25)),0,I25 / (1+J25))","v":0},null,null,{"$f":"(K25-L25)*(1-M25)","v":0},null,{"$f":"N25-O25","v":0},null,{"$f":"N25-O25-Q25","v":0},null,null,null,{"$f":"R25-U25","v":0},null,{"$f":"R25-U25-W25","v":0},null,{"$f":"X25","v":0},null,{"$f":"Z25*AA25","v":0}]
["UBVbv","Receipt",{"$f":"C25+1","v":4},null,null,null,null,null,null,null,{"$f":"IF(OR(ISBLANK(I26),ISBLANK(J26)),0,I26 / (1+J26))","v":0},null,null,{"$f":"(K26-L26)*(1-M26)","v":0},null,{"$f":"N26-O26","v":0},null,{"$f":"N26-O26-Q26","v":0},null,null,null,{"$f":"R26-U26","v":0},null,{"$f":"R26-U26-W26","v":0},null,{"$f":"X26","v":0},null,{"$f":"Z26*AA26","v":0}]
["UBVbv","Receipt",{"$f":"C26+1","v":5},null,null,null,null,null,null,null,{"$f":"IF(OR(ISBLANK(I27),ISBLANK(J27)),0,I27 / (1+J27))","v":0},null,null,{"$f":"(K27-L27)*(1-M27)","v":0},null,{"$f":"N27-O27","v":0},null,{"$f":"N27-O27-Q27","v":0},null,null,null,{"$f":"R27-U27","v":0},null,{"$f":"R27-U27-W27","v":0},null,{"$f":"X27","v":0},null,{"$f":"Z27*AA27","v":0}]
["UBVbv","Receipt",{"$f":"C27+1","v":6},null,null,null,null,null,null,null,{"$f":"IF(OR(ISBLANK(I28),ISBLANK(J28)),0,I28 / (1+J28))","v":0},null,null,{"$f":"(K28-L28)*(1-M28)","v":0},null,{"$f":"N28-O28","v":0},null,{"$f":"N28-O28-Q28","v":0},null,null,null,{"$f":"R28-U28","v":0},null,{"$f":"R28-U28-W28","v":0},null,{"$f":"X28","v":0},null,{"$f":"Z28*AA28","v":0}]
["UBVbv","Receipt",{"$f":"C28+1","v":7},null,null,null,null,null,null,null,{"$f":"IF(OR(ISBLANK(I29),ISBLANK(J29)),0,I29 / (1+J29))","v":0},null,null,{"$f":"(K29-L29)*(1-M29)","v":0},null,{"$f":"N29-O29","v":0},null,{"$f":"N29-O29-Q29","v":0},null,null,null,{"$f":"R29-U29","v":0},null,{"$f":"R29-U29-W29","v":0},null,{"$f":"X29","v":0},null,{"$f":"Z29*AA29","v":0}]
["UBVbv","Receipt",{"$f":"C29+1","v":8},null,null,null,null,null,null,null,{"$f":"IF(OR(ISBLANK(I30),ISBLANK(J30)),0,I30 / (1+J30))","v":0},null,null,{"$f":"(K30-L30)*(1-M30)","v":0},null,{"$f":"N30-O30","v":0},null,{"$f":"N30-O30-Q30","v":0},null,null,null,{"$f":"R30-U30","v":0},null,{"$f":"R30-U30-W30","v":0},null,{"$f":"X30","v":0},null,{"$f":"Z30*AA30","v":0}]
["UBVbv","Receipt",{"$f":"C30+1","v":9},null,null,null,null,null,null,null,{"$f":"IF(OR(ISBLANK(I31),ISBLANK(J31)),0,I31 / (1+J31))","v":0},null,null,{"$f":"(K31-L31)*(1-M31)","v":0},null,{"$f":"N31-O31","v":0},null,{"$f":"N31-O31-Q31","v":0},null,null,null,{"$f":"R31-U31","v":0},null,{"$f":"R31-U31-W31","v":0},null,{"$f":"X31","v":0},null,{"$f":"Z31*AA31","v":0}]
["UBVbv","Receipt",{"$f":"C31+1","v":10},null,null,null,null,null,null,null,{"$f":"IF(OR(ISBLANK(I32),ISBLANK(J32)),0,I32 / (1+J32))","v":0},null,null,{"$f":"(K32-L32)*(1-M32)","v":0},null,{"$f":"N32-O32","v":0},null,{"$f":"N32-O32-Q32","v":0},null,null,null,{"$f":"R32-U32","v":0},null,{"$f":"R32-U32-W32","v":0},null,{"$f":"X32","v":0},null,{"$f":"Z32*AA32","v":0}]
["UBVbv","Receipt",{"$f":"C32+1","v":11},null,null,null,null,null,null,null,0,null,null,0,null,{"$f":"N33-O33","v":0},null,0,null,null,null,0,null,0,null,0,null,0]
["UBVbv","Receipt",{"$f":"C33+1","v":12},null,null,null,null,null,null,null,0,null,null,0,null,{"$f":"N34-O34","v":0},null,0,null,null,null,0,null,0,null,0,null,0]
["UBVbv","Receipt",13,null,null,null,null,null,null,null,0,null,null,0,null,0,null,0,null,null,null,0,null,0,null,0,null,0]
["UBVbv","Receipt",14,null,null,null,null,null,null,null,0,null,null,0,null,0,null,0,null,null,null,0,null,0,null,0,null,0]
["UBVbv","Receipt",15,null,null,null,null,null,null,null,{"$f":"IF(OR(ISBLANK(I37),ISBLANK(J37)),0,I37 / (1+J37))","v":0},null,null,0,null,{"$f":"N37-O37","v":0},null,0,null,null,null,{"$f":"R37-U37","v":0},null,{"$f":"R37-U37-W37","v":0},null,0,null,0]
["UBVbv","Receipt",16,null,null,null,null,null,null,null,0,null,null,0,null,0,null,{"$f":"N38-O38-Q38","v":0},null,null,null,0,null,0,null,{"$f":"X38","v":0},null,{"$f":"Z38*AA38","v":0}]
["UBVbv","Receipt",17,null,null,null,null,null,null,null,0,null,null,0,null,0,null,{"$f":"N39-O39-Q39","v":0},null,null,null,0,null,0,null,{"$f":"X39","v":0},null,{"$f":"Z39*AA39","v":0}]
["UBVbv","Receipt",18,null,null,null,null,null,null,null,0,null,null,0,null,0,null,{"$f":"N40-O40-Q40","v":0},null,null,null,0,null,0,null,{"$f":"X40","v":0},null,{"$f":"Z40*AA40","v":0}]
["UBVbv","Receipt",19,null,null,null,null,null,null,null,0,null,null,0,null,0,null,{"$f":"N41-O41-Q41","v":0},null,null,null,0,null,0,null,{"$f":"X41","v":0},null,{"$f":"Z41*AA41","v":0}]
["UBVbv","Receipt",20,null,null,null,null,null,null,null,0,null,null,0,null,0,null,{"$f":"N42-O42-Q42","v":0},null,null,null,0,null,0,null,{"$f":"X42","v":0},null,{"$f":"Z42*AA42","v":0}]
["UBVbv","Receipt",{"$f":"C42+1","v":21},null,null,null,null,null,null,null,0,null,null,0,null,0,null,0,null,null,null,0,null,0,null,0,null,0]
["-","Tail",22,null,"-- Do not Erase --","-- Do not Erase --","-- Do not Erase --",null,null,null,0,null,null,0,null,0,null,0,null,null,null,0,null,0,null,0,null,0]
["UBVbv",null,null,null,null,null,null,null,null,null,null,"Gesamtsumme:",null,{"$f":"SUM(N22:N44)","v":0},{"$f":"SUM(O22:O44)","v":0},{"$f":"SUM(P22:P44)","v":0},{"$f":"SUM(Q22:Q44)","v":0},{"$f":"SUM(R22:R44)","v":0},null,null,{"$f":"SUM(U22:U44)","v":0},{"$f":"SUM(V22:V44)","v":0},{"$f":"SUM(W22:W44)","v":0},{"$f":"SUM(X22:X44)","v":0},null,null,null,{"$f":"SUM(AB22:AB44)","v":0}]
["U"]
["U"]
["U"]
["U"]
["U"]
["U",null,null,"Ort, Datum"]
["U"]
[]
[]
[]
[]
[]
[null,null,null,"Datum",null,"Unterschrift oder firmenmäßge Zeichnung"]